fUSD/lending_fUSD_20240803
["ID","MTS","AMOUNT","RATE_DAILY","PERIOD"]
[334050407,1722708877726,-250.0,0.0003,30]
[334050408,1722708877750,-340.81817931,0.0003,30]
[334050409,1722708877774,-1000.0,0.0003,120]
[334050410,1722708877798,-1813.735,0.0003,120]
[334050411,1722708877824,-1800.0,0.0003,31]
[334050412,1722708877850,-250.0,0.0003,120]
[334050413,1722708877876,-250.0,0.0003,120]
[334050414,1722708877900,-250.0,0.0003,120]
[334050415,1722708878644,-250.0,0.0003,120]
[334050416,1722708879083,-4806.0,0.0003,30]
[334050417,1722708879110,-1757.66268548,0.0003,60]
[334050418,1722708879136,-3059.87,0.0003,90]
[334050419,1722708879161,-200.0,0.00030137,60]
[334050420,1722708879186,-150.0,0.00030223,120]
[334050421,1722708879208,-548.0,0.00030613,30]
[334050422,1722708879231,-888.0,0.0003063,120]
[334050423,1722708879254,-250.0,0.000308,30]
[334050424,1722708879279,-185.1,0.00030849,120]
[334050425,1722708879303,-150.0,0.00030952,120]
[334050426,1722708879329,-50000.0,0.00031,31]
[334050427,1722708879356,-1800.0,0.00031,32]
[334050428,1722708879381,-150.0,0.00031022,120]
[334050429,1722708879405,-200.0,0.00031082,120]
[334050430,1722708879430,-150.0,0.00031343,120]
[334050431,1722708879454,-863.99873699,0.000314,30]
[334050432,1722708879478,-150.0,0.00031445,120]
[334050433,1722708879502,-151.0,0.00031452,120]
[334050434,1722708879526,-185.1,0.00031699,120]
[334050435,1722708879550,-150.0,0.00031854,120]
[334050436,1722708879574,-150.0,0.00031995,120]
[334050437,1722708879601,-50000.0,0.00032,32]
[334050438,1722708879627,-1146.36410685,0.00032,120]
[334050439,1722708879651,-2000.0,0.00032,120]
[334050440,1722708879675,-557.1637379,0.00032,120]
[334050441,1722708879698,-1800.0,0.00032,33]
[334050442,1722708879722,-150.64225319,0.00032,120]
[334050443,1722708879745,-689.06138929,0.00032,120]
[334050444,1722708879768,-250.93473556,0.000325,120]
[334050445,1722708879818,-185.1,0.00032548,120]
[334050446,1722708879842,-150.0,0.00032588,120]
[334050447,1722708879865,-3041.0,0.000327,35]
[334050448,1722708879888,-268.8064718,0.00032815,30]
[334050449,1722708879912,-1080.87,0.00032876,30]
[334050450,1722708879935,-1000.0,0.00032876,30]
[334050451,1722708879959,-1000.0,0.00032876,30]
[334050452,1722708879984,-1000.0,0.00032876,30]
[334050453,1722708880007,-1000.0,0.00032876,30]
[334050454,1722708880031,-1000.0,0.00032876,30]
[334050455,1722708880053,-1000.0,0.00032876,30]
[334050456,1722708880077,-1000.0,0.00032876,30]
[334050457,1722708880100,-662.64338511,0.00032876,30]
[334050458,1722708880123,-2607.84,0.00032876,120]
[334050459,1722708880146,-2607.84,0.00032876,120]
[334050460,1722708880169,-2607.84,0.00032876,120]
[334050461,1722708880191,-2607.84,0.00032876,120]
[334050462,1722708880215,-2607.84,0.00032876,120]
[334050463,1722708880240,-2607.84,0.00032876,120]
[334050464,1722708880264,-2607.84,0.00032876,120]
[334050465,1722708880287,-2607.84,0.00032876,120]
[334050466,1722708880310,-2607.84,0.00032876,120]
[334050467,1722708880333,-2607.84,0.00032876,120]
[334050468,1722708880356,-2607.84,0.00032876,120]
[334050469,1722708880379,-2607.84,0.00032876,120]
[334050470,1722708880402,-2607.84,0.00032876,120]
[334050471,1722708880424,-2607.84,0.00032876,120]
[334050472,1722708880449,-2607.84,0.00032876,120]
[334050473,1722708880473,-2607.84,0.00032876,120]
[334050474,1722708880497,-2607.84,0.00032876,120]
[334050475,1722708880520,-2607.84,0.00032876,120]
[334050476,1722708880544,-2607.84,0.00032876,120]
[334050477,1722708880570,-2607.84,0.00032876,120]
[334050478,1722708880594,-2607.84,0.00032876,120]
[334050479,1722708880618,-2607.84,0.00032876,120]
[334050480,1722708880644,-2607.84,0.00032876,120]
[334050481,1722708880668,-2608.00619619,0.00032876,120]
[334050482,1722708880692,-2000.0,0.00032876,30]
[334050483,1722708880716,-2000.0,0.00032876,30]
[334050484,1722708880740,-2000.0,0.00032876,30]
[334050485,1722708880763,-2000.0,0.00032876,30]
[334050486,1722708880787,-2000.0,0.00032876,30]
[334050487,1722708880810,-2000.0,0.00032876,30]
[334050488,1722708880833,-1315.91479352,0.00032876,30]
[334050489,1722708880857,-200.0,0.00032877,60]
[334050490,1722708880881,-16300.67518229,0.000329,30]
[334050491,1722708880904,-343.83057831,0.000329,30]
[334050492,1722708880933,-151.0,0.00032904,120]
[334050493,1722708880959,-50000.0,0.00033,33]
[334050494,1722708880983,-3600.0,0.00033,34]
[334050495,1722708881007,-515.40454619,0.00033,60]
[334050496,1722708881031,-900.0,0.00033,34]
[334050497,1722708881199,-2258.46,0.00033,120]
[334050498,1722708881224,-160.74875085,0.00033,120]
[334050499,1722708881249,-407.22,0.00033151,120]
[334050500,1722708881275,-150.0,0.0003317,120]
[334050501,1722708881301,-150.0,0.00033239,120]
[334050502,1722708881327,-185.1,0.00033397,120]
[334050503,1722708881351,-1080.87,0.00033424,30]
[334050504,1722708881376,-150.0,0.00033538,120]
[334050505,1722708881400,-768.0,0.00033674,30]
[334050506,1722708881425,-150.0,0.00033794,120]
[334050507,1722708881450,-150.0,0.00033802,120]
[334050508,1722708881476,-150.0,0.0003383,120]
[334050509,1722708881501,-150.0,0.00033863,120]
[334050510,1722708881526,-1080.87,0.00033972,30]
[334050511,1722708881554,-50000.0,0.00034,34]
[334050512,1722708881579,-2000.0,0.00034,120]
[334050513,1722708881609,-1800.0,0.00034,35]
[334050514,1722708881637,-4580.4665508,0.00034,120]
[334050515,1722708881663,-185.1,0.00034247,120]
[334050516,1722708881693,-151.0,0.00034356,120]
[334050517,1722708881719,-1080.87,0.0003452,30]
[334050518,1722708881745,-1153.330618,0.000348,30]
[334050519,1722708881774,-50000.0,0.00035,35]
[334050520,1722708881800,-1537.774158,0.00035,30]
[334050521,1722708881824,-200.0,0.00035,30]
[334050522,1722708881848,-263.22731794,0.00035,30]
[334050523,1722708881873,-413.0,0.00035,90]
[334050524,1722708881898,-1028.98850539,0.00035,90]
[334050525,1722708881922,-160.0,0.00035,30]
[334050526,1722708881945,-152.27727821,0.00035,120]
[334050527,1722708881973,-2601885.74456935,0.00035,30]
[334050528,1722708881996,-229.74106861,0.00035,120]
[334050529,1722708882021,-1800.0,0.00035,36]
[334050530,1722708882045,-1590.0,0.00035,120]
[334050531,1722708882069,-468.87484642,0.00035001,120]
[334050532,1722708882094,-468.8748464,0.00035001,120]
[334050533,1722708882120,-300.0,0.00035001,120]
[334050534,1722708882146,-1080.87,0.00035068,30]
[334050535,1722708882170,-11093.91730991,0.00035068,30]
[334050536,1722708882195,-1060.43197734,0.00035068,30]
[334050537,1722708882219,-185.1,0.00035096,120]
[334050538,1722708882244,-200.0,0.00035164,120]
[334050539,1722708882273,-1922.217698,0.000355,30]
[334050540,1722708882299,-2306.661237,0.000356,30]
[334050541,1722708882325,-1080.87,0.00035616,30]
[334050542,1722708882349,-200.0,0.00035616,60]
[334050543,1722708882374,-2306.661237,0.000357,30]
[334050544,1722708882401,-2691.104777,0.000358,30]
[334050545,1722708882425,-151.0,0.00035808,120]
[334050546,1722708882452,-2306.661237,0.0003582,30]
[334050547,1722708882477,-185.1,0.00035945,120]
[334050548,1722708882505,-50000.0,0.00036,36]
[334050549,1722708882531,-1800.0,0.00036,37]
[334050550,1722708882555,-2090.69278404,0.00036,120]
[334050551,1722708882578,-1000.0,0.00036,120]
[334050552,1722708882605,-1234.153225,0.00036,120]
[334050553,1722708882633,-2000.0,0.00036,120]
[334050554,1722708882658,-3345.1,0.00036114,54]
[334050555,1722708882683,-1080.87,0.00036164,30]
[334050556,1722708882708,-11093.91730991,0.00036568,30]
[334050557,1722708882732,-1080.87,0.00036712,30]
[334050558,1722708882756,-185.1,0.00036795,120]
[334050559,1722708882779,-468.87484642,0.00036943,120]
[334050560,1722708882803,-521.89801904,0.00036943,120]
[334050561,1722708882829,-50000.0,0.00037,37]
[334050562,1722708882854,-1800.0,0.00037,38]
[334050563,1722708882878,-256.0,0.00037042,30]
[334050564,1722708882904,-391.47155457,0.00037109,120]
[334050565,1722708882928,-1080.87,0.0003726,30]
[334050566,1722708882953,-151.0,0.0003726,120]
[334050567,1722708882980,-185.1,0.00037644,120]
[334050568,1722708883004,-1080.87,0.00037808,30]
[334050569,1722708883029,-205.0,0.00037976,30]
[334050570,1722708883053,-227.20556352,0.00037999,120]
[334050571,1722708883081,-50000.0,0.00038,38]
[334050572,1722708883106,-3032.96834724,0.00038,30]
[334050573,1722708883131,-668.64513663,0.00038,30]
[334050574,1722708883156,-2000.0,0.00038,120]
[334050575,1722708883182,-1800.0,0.00038,39]
[334050576,1722708883206,-2811.40206187,0.00038,120]
[334050577,1722708883232,-1799.18133517,0.00038,120]
[334050578,1722708883258,-11093.91730991,0.00038068,30]
[334050579,1722708883284,-1080.87,0.00038356,30]
[334050580,1722708883308,-1230.36,0.00038356,120]
[334050581,1722708883332,-1230.36,0.00038356,120]
[334050582,1722708883357,-1230.36,0.00038356,120]
[334050583,1722708883612,-1230.36,0.00038356,120]
[334050584,1722708883645,-1230.36,0.00038356,120]
[334050585,1722708883672,-1230.36,0.00038356,120]
[334050586,1722708883700,-1230.36,0.00038356,120]
[334050587,1722708883725,-1230.36,0.00038356,120]
[334050588,1722708883751,-1230.36,0.00038356,120]
[334050589,1722708883777,-1230.36,0.00038356,120]
[334050590,1722708883802,-1230.36,0.00038356,120]
[334050591,1722708883827,-1230.36,0.00038356,120]
[334050592,1722708883852,-1230.36,0.00038356,120]
[334050593,1722708883876,-1230.36,0.00038356,120]
[334050594,1722708883902,-1230.36,0.00038356,120]
[334050595,1722708883926,-1230.36,0.00038356,120]
[334050596,1722708883950,-1230.36,0.00038356,120]
[334050597,1722708883974,-1230.36,0.00038356,120]
[334050598,1722708883998,-1230.36,0.00038356,120]
[334050599,1722708884023,-1230.36,0.00038356,120]
[334050600,1722708884047,-1230.36,0.00038356,120]
[334050601,1722708884071,-1230.36,0.00038356,120]
[334050602,1722708884095,-1230.36,0.00038356,120]
[334050603,1722708884136,-1230.41107638,0.00038356,120]
[334050604,1722708884163,-1599.94,0.00038356,120]
[334050605,1722708884189,-1599.94,0.00038356,120]
[334050606,1722708884213,-1599.94,0.00038356,120]
[334050607,1722708884238,-1599.94,0.00038356,120]
[334050608,1722708884262,-1599.94,0.00038356,120]
[334050609,1722708884287,-1599.94,0.00038356,120]
[334050610,1722708884311,-1599.94,0.00038356,120]
[334050611,1722708884335,-1599.94,0.00038356,120]
[334050612,1722708884363,-1599.94,0.00038356,120]
[334050613,1722708884386,-1599.94,0.00038356,120]
[334050614,1722708884411,-1599.94,0.00038356,120]
[334050615,1722708884435,-1599.94,0.00038356,120]
[334050616,1722708884460,-1599.94,0.00038356,120]
[334050617,1722708884484,-1599.94,0.00038356,120]
[334050618,1722708884511,-1599.94,0.00038356,120]
[334050619,1722708884535,-1599.94,0.00038356,120]
[334050620,1722708884559,-1599.94,0.00038356,120]
[334050621,1722708884583,-1599.94,0.00038356,120]
[334050622,1722708884625,-1599.94,0.00038356,120]
[334050623,1722708884654,-1599.94,0.00038356,120]
[334050624,1722708884691,-1599.94,0.00038356,120]
[334050625,1722708884722,-1599.94,0.00038356,120]
[334050626,1722708884750,-1599.94,0.00038356,120]
[334050627,1722708884775,-1600.16202396,0.00038356,120]
[334050628,1722708884802,-200.0,0.00038356,60]
[334050629,1722708884827,-288.308314,0.000384,33]
[334050630,1722708884853,-185.1,0.00038493,120]
[334050631,1722708884878,-336.0,0.000385,120]
[334050632,1722708884903,-660.25219541,0.000387,120]
[334050633,1722708884927,-151.0,0.00038712,120]
[334050634,1722708884953,-1874.04328953,0.0003888,90]
[334050635,1722708884980,-468.87484642,0.00038886,120]
[334050636,1722708885004,-381.43474058,0.000389,30]
[334050637,1722708885029,-1080.87,0.00038904,30]
[334050638,1722708885054,-1054.811532,0.00038999,120]
[334050639,1722708885084,-50000.0,0.00039,39]
[334050640,1722708885125,-500.0,0.00039,120]
[334050641,1722708885149,-160.0,0.00039,30]
[334050642,1722708885174,-1151.85443163,0.00039,120]
[334050643,1722708885198,-1458.3527879,0.00039,30]
[334050644,1722708885222,-2218.70802767,0.00039,120]
[334050645,1722708885247,-195.0,0.00039,120]
[334050646,1722708885272,-150.0,0.00039,50]
[334050647,1722708885298,-1153.0,0.00039,120]
[334050648,1722708885324,-2185.26984679,0.00039,120]
[334050649,1722708885348,-55875.70436489,0.00039,30]
[334050650,1722708885373,-2742.1353908,0.00039,120]
[334050651,1722708885397,-275.38863719,0.00039,31]
[334050652,1722708885422,-200.0,0.00039246,120]
[334050653,1722708885447,-185.1,0.00039342,120]
[334050654,1722708885471,-569.54313398,0.000394,30]
[334050655,1722708885537,-1713.08308271,0.000394,120]
[334050656,1722708885562,-1080.87,0.00039452,30]
[334050657,1722708885586,-411.43648058,0.000395,30]
[334050658,1722708885630,-600.0,0.000395,120]
[334050659,1722708885659,-3649.2,0.00039529,74]
[334050660,1722708885685,-11093.91730991,0.00039568,30]
[334050661,1722708885712,-1010.97153595,0.000398,120]
[334050662,1722708885737,-156.2292516,0.000398,120]
[334050663,1722708885762,-1218.42922405,0.000398,90]
[334050664,1722708885786,-200000.0,0.0003984,30]
[334050665,1722708885812,-5328.38408659,0.00039898,36]
[334050666,1722708885837,-2093.93352807,0.000399,30]
[334050667,1722708885860,-2234.54406442,0.000399,120]
[334050668,1722708885885,-241964.63027124,0.000399,120]
[334050669,1722708885910,-7228.2481132,0.0003998,30]
[334050670,1722708885936,-250.0,0.00039999,30]
[334050671,1722708885964,-50000.0,0.0004,30]
[334050672,1722708885992,-50000.0,0.0004,40]
[334050673,1722708886017,-200.0,0.0004,60]
[334050674,1722708886041,-1080.87,0.0004,30]
[334050675,1722708886065,-361.0,0.0004,60]
[334050676,1722708886088,-2500.0,0.0004,120]
[334050677,1722708886118,-2500.0,0.0004,120]
[334050678,1722708886152,-2500.0,0.0004,120]
[334050679,1722708886176,-2500.0,0.0004,120]
[334050680,1722708886200,-2500.0,0.0004,120]
[334050681,1722708886224,-2500.0,0.0004,120]
[334050682,1722708886248,-2500.0,0.0004,120]
[334050683,1722708886272,-2500.0,0.0004,120]
[334050684,1722708886296,-2500.0,0.0004,120]
[334050685,1722708886319,-2500.0,0.0004,120]
[334050686,1722708886342,-2500.0,0.0004,120]
[334050687,1722708886366,-2500.0,0.0004,120]
[334050688,1722708886390,-2500.0,0.0004,120]
[334050689,1722708886413,-2500.0,0.0004,120]
[334050690,1722708886438,-331.0936904,0.0004,120]
[334050691,1722708886462,-477.12749073,0.0004,30]
[334050692,1722708886486,-450.89085429,0.0004,120]
[334050693,1722708886511,-2927.38589344,0.0004,30]
[334050694,1722708886535,-1483.70942843,0.0004,30]
[334050695,1722708886559,-701.40931808,0.0004,30]
[334050696,1722708886583,-576.63373494,0.0004,30]
[334050697,1722708886607,-186.77248395,0.0004,120]
[334050698,1722708886652,-311.92740502,0.0004,120]
[334050699,1722708886678,-996.0,0.0004,60]
[334050700,1722708886702,-2000.0,0.0004,120]
[334050701,1722708886727,-2000.0,0.0004,90]
[334050702,1722708886751,-599.0,0.0004,120]
[334050703,1722708886776,-2000.0,0.0004,120]
[334050704,1722708886801,-2578.44724856,0.0004,120]
[334050705,1722708886826,-343.27789432,0.0004,30]
[334050706,1722708886851,-500.0,0.0004,30]
[334050707,1722708886877,-500.0,0.0004,38]
[334050708,1722708886901,-500.0,0.0004,30]
[334050709,1722708886925,-500.0,0.0004,30]
[334050710,1722708886950,-500.0,0.0004,30]
[334050711,1722708886974,-500.0,0.0004,30]
[334050712,1722708886999,-2064.0,0.0004,120]
[334050713,1722708887023,-542.19,0.0004,30]
[334050714,1722708887048,-1583.06175698,0.0004,30]
[334050715,1722708887071,-300.0,0.0004,60]
[334050716,1722708887094,-150.0,0.0004,120]
[334050717,1722708887136,-1812.28075102,0.0004,120]
[334050718,1722708887160,-8261.23446497,0.0004,30]
[334050719,1722708887184,-9329.22800319,0.0004,45]
[334050720,1722708887207,-33488.23023268,0.0004,30]
[334050721,1722708887231,-37065.07231243,0.0004,30]
[334050722,1722708887255,-5000.0,0.0004,30]
[334050723,1722708887280,-15813.0,0.0004,60]
[334050724,1722708887305,-3000.0,0.0004,105]
[334050725,1722708887330,-353.0,0.0004,60]
[334050726,1722708887353,-4628.99,0.0004,30]
[334050727,1722708887376,-2110.0,0.0004,30]
[334050728,1722708887400,-230000.0,0.0004,120]
[334050729,1722708887424,-800.0,0.0004,120]
[334050730,1722708887448,-2811.40206187,0.0004,120]
[334050731,1722708887473,-1799.18133517,0.0004,120]
[334050732,1722708887498,-1613.72,0.0004,120]
[334050733,1722708887523,-786.73,0.0004,120]
[334050734,1722708887547,-1751.51,0.0004,120]
[334050735,1722708887572,-811.18,0.0004,120]
[334050736,1722708887596,-353.05,0.0004,120]
[334050737,1722708887634,-426.022861,0.0004,30]
[334050738,1722708887658,-150.0,0.0004,60]
[334050739,1722708887683,-1219.63704994,0.00040073,120]
[334050740,1722708887708,-888.30791433,0.00040131,30]
[334050741,1722708887733,-151.0,0.00040164,120]
[334050742,1722708887757,-185.1,0.00040192,120]
[334050743,1722708887781,-250.49729728,0.000402,120]
[334050744,1722708887807,-979.23489066,0.00040258,40]
[334050745,1722708887830,-392.51392696,0.00040258,40]
[334050746,1722708887853,-636.57276668,0.00040258,40]
[334050747,1722708887877,-878.81904512,0.000403,120]
[334050748,1722708887901,-289.69628795,0.000403,120]
[334050749,1722708887924,-288466.48085531,0.0004044,30]
[334050750,1722708893969,-211533.51914469,0.0004044,30]
[334050751,1722708893994,-2110.0,0.000405,30]
[334050752,1722708894019,-1000.0,0.000405,120]
[334050753,1722708894043,-1080.87,0.00040547,30]
[334050754,1722708894068,-656.0,0.0004055,45]
[334050755,1722708894092,-3012.0,0.000407,120]
[334050756,1722708894120,-1131.34320382,0.000407,30]
[334050757,1722708894148,-5885.92436348,0.0004079,120]
[334050758,1722708894174,-1123.02254125,0.0004079,120]
[334050759,1722708894199,-508.91727,0.000408,120]
[334050760,1722708894223,-25000.0,0.000408,120]
[334050761,1722708894248,-5000.0,0.00040821,120]
[334050762,1722708894274,-5000.0,0.00040821,120]
[334050763,1722708894299,-5000.0,0.00040821,120]
[334050764,1722708894323,-5000.0,0.00040821,120]
[334050765,1722708894348,-5000.0,0.00040821,120]
[334050766,1722708894377,-3700.72324597,0.00040821,120]
[334050767,1722708894707,-5000.0,0.00040821,120]
[334050768,1722708894733,-3000.0,0.00040821,120]
[334050769,1722708894758,-468.87484642,0.00040828,120]
[334050770,1722708894783,-2790.8479,0.00040878,60]
[334050771,1722708894808,-279321.66379425,0.00040889,90]
[334050772,1722708894833,-67845.34822132,0.000409,120]
[334050773,1722708894860,-129955.80663725,0.000409,30]
[334050774,1722708894889,-330.6679998,0.0004099,120]
[334050775,1722708894914,-1000.0,0.00040999,120]
[334050776,1722708894940,-50000.0,0.00041,31]
[334050777,1722708894966,-50000.0,0.00041,41]
[334050778,1722708894991,-2510.16581156,0.00041,30]
[334050779,1722708895014,-317.72260571,0.00041,120]
[334050780,1722708895040,-150.0,0.00041,60]
[334050781,1722708895066,-1000.0,0.00041,30]
[334050782,1722708895090,-1001.8,0.00041,120]
[334050783,1722708895115,-3000.0,0.00041,100]
[334050784,1722708895147,-14035.84211114,0.00041,30]
[334050785,1722708895174,-10515.0,0.00041,120]
[334050786,1722708895198,-431.17425683,0.00041,120]
[334050787,1722708895222,-220.0,0.00041,120]
[334050788,1722708895246,-413.76,0.00041,120]
[334050789,1722708895273,-18369.70811239,0.00041,120]
[334050790,1722708895298,-35762.0,0.00041,30]
[334050791,1722708895323,-2110.0,0.00041,30]
[334050792,1722708895349,-984.58603873,0.00041,120]
[334050793,1722708895382,-501.0,0.00041,120]
[334050794,1722708895410,-2000.0,0.00041,30]
[334050795,1722708895439,-185.1,0.00041041,120]
[334050796,1722708895465,-1621.40577876,0.00041044,120]
[334050797,1722708895492,-11093.91730991,0.00041068,30]
[334050798,1722708895519,-391.87388485,0.00041078,120]
[334050799,1722708895544,-1080.87,0.00041095,30]
[334050800,1722708895568,-2024.0,0.00041095,60]
[334050801,1722708895594,-635.63521855,0.00041095,120]
[334050802,1722708895623,-707.86981878,0.00041095,120]
[334050803,1722708895650,-515.30687864,0.00041095,30]
[334050804,1722708895677,-1473.54,0.00041095,120]
[334050805,1722708895704,-1473.54,0.00041095,120]
[334050806,1722708895737,-1473.54,0.00041095,120]
[334050807,1722708895764,-1473.54,0.00041095,120]
[334050808,1722708895791,-1473.54,0.00041095,120]
[334050809,1722708895817,-1473.54,0.00041095,120]
[334050810,1722708895845,-1473.54,0.00041095,120]
[334050811,1722708895876,-1473.54,0.00041095,120]
[334050812,1722708895902,-1473.54,0.00041095,120]
[334050813,1722708895928,-1473.54,0.00041095,120]
[334050814,1722708895955,-1473.54,0.00041095,120]
[334050815,1722708895982,-1473.54,0.00041095,120]
[334050816,1722708896008,-1473.54,0.00041095,120]
[334050817,1722708896034,-1473.54,0.00041095,120]
[334050818,1722708896060,-1473.54,0.00041095,120]
[334050819,1722708896086,-1473.54,0.00041095,120]
[334050820,1722708896112,-1473.54,0.00041095,120]
[334050821,1722708896140,-1473.54,0.00041095,120]
[334050822,1722708896167,-1473.54,0.00041095,120]
[334050823,1722708896193,-1473.54,0.00041095,120]
[334050824,1722708896219,-1473.54,0.00041095,120]
[334050825,1722708896245,-1473.54,0.00041095,120]
[334050826,1722708896272,-1473.54,0.00041095,120]
[334050827,1722708896298,-1473.59875076,0.00041095,120]
[334050828,1722708896325,-213.76579669,0.00041096,60]
[334050829,1722708896350,-595.79,0.00041096,30]
[334050830,1722708896381,-152.14,0.00041123,30]
[334050831,1722708896409,-2776.97513736,0.0004118,120]
[334050832,1722708896435,-2024.0,0.00041232,60]
[334050833,1722708896462,-1000.0,0.000413,30]
[334050834,1722708896487,-2024.0,0.00041369,60]
[334050835,1722708896511,-3000.0,0.000415,120]
[334050836,1722708896536,-2110.0,0.000415,30]
[334050837,1722708896560,-1250.0,0.000415,120]
[334050838,1722708896585,-2024.0,0.00041506,60]
[334050839,1722708896656,-1000.0,0.000416,30]
[334050840,1722708896681,-151.0,0.00041616,120]
[334050841,1722708896706,-1288.67,0.00041643,30]
[334050842,1722708896732,-1080.87,0.00041643,30]
[334050843,1722708896757,-2024.0,0.00041643,60]
[334050844,1722708896782,-422.90297978,0.00041644,30]
[334050845,1722708896808,-2024.0,0.0004178,60]
[334050846,1722708896833,-8591.51653367,0.0004188,30]
[334050847,1722708896861,-458.05336177,0.0004188,30]
[334050848,1722708896888,-942.27,0.00041889,120]
[334050849,1722708896914,-185.1,0.0004189,120]
[334050850,1722708896940,-1000.0,0.000419,30]
[334050851,1722708896966,-2024.0,0.00041917,60]
[334050852,1722708896995,-50000.0,0.00042,32]
[334050853,1722708897022,-50000.0,0.00042,42]
[334050854,1722708897047,-618.77865592,0.00042,120]
[334050855,1722708897072,-888.61963541,0.00042,120]
[334050856,1722708897097,-1189.64223818,0.00042,120]
[334050857,1722708897128,-3264.01130752,0.00042,120]
[334050858,1722708897156,-1624.49498984,0.00042,120]
[334050859,1722708897184,-1400.0,0.00042,120]
[334050860,1722708897213,-1000000.0,0.00042,120]
[334050861,1722708897240,-1000.0,0.00042,120]
[334050862,1722708897265,-1000.0,0.00042,120]
[334050863,1722708897291,-1000.0,0.00042,120]
[334050864,1722708897317,-1000.0,0.00042,120]
[334050865,1722708897343,-1000.0,0.00042,120]
[334050866,1722708897368,-1000.0,0.00042,120]
[334050867,1722708897397,-1000.0,0.00042,120]
[334050868,1722708897424,-1000.0,0.00042,120]
[334050869,1722708897450,-1000.0,0.00042,120]
[334050870,1722708897476,-1000.0,0.00042,120]
[334050871,1722708897503,-1000.0,0.00042,120]
[334050872,1722708897529,-860.34,0.00042,120]
[334050873,1722708897555,-181.44,0.00042,120]
[334050874,1722708897582,-3000.0,0.00042,120]
[334050875,1722708897606,-2267.69116312,0.00042,60]
[334050876,1722708897637,-2516.58199345,0.00042,120]
[334050877,1722708897669,-180.0,0.00042,120]
[334050878,1722708897695,-2110.0,0.00042,30]
[334050879,1722708897724,-400.0,0.00042,30]
[334050880,1722708897750,-2024.0,0.00042054,60]
[334050881,1722708897776,-1000.0,0.000421,120]
[334050882,1722708897802,-1000.0,0.000421,120]
[334050883,1722708897827,-1000.0,0.000421,120]
[334050884,1722708897852,-1000.0,0.000421,120]
[334050885,1722708897883,-1000.0,0.000421,120]
[334050886,1722708897911,-1000.0,0.000421,120]
[334050887,1722708897935,-1000.0,0.000421,120]
[334050888,1722708897960,-1000.0,0.000421,120]
[334050889,1722708897985,-1000.0,0.000421,120]
[334050890,1722708898012,-794.31,0.000421,120]
[334050891,1722708898037,-1288.67,0.00042191,30]
[334050892,1722708898063,-1080.87,0.00042191,30]
[334050893,1722708898090,-2024.0,0.00042191,60]
[334050894,1722708898115,-1000.0,0.000422,30]
[334050895,1722708898147,-19144.01109243,0.000422,90]
[334050896,1722708898173,-2024.0,0.00042328,60]
[334050897,1722708898199,-2024.0,0.00042465,60]
[334050898,1722708898224,-569.91974859,0.00042465,120]
[334050899,1722708898248,-1000.0,0.000425,30]
[334050900,1722708898277,-3000.0,0.000425,120]
[334050901,1722708898301,-2110.0,0.000425,30]
[334050902,1722708898325,-23559.0,0.000425,90]
[334050903,1722708898351,-1594.62,0.000425,120]
[334050904,1722708898379,-300.0,0.00042524,120]
[334050905,1722708898403,-11093.91730991,0.00042568,60]
[334050906,1722708898428,-2024.0,0.00042602,60]